fUSD/lending_fUSD_20240217
["ID","MTS","AMOUNT","RATE_DAILY","PERIOD"]
[314264865,1708128668400,-500.0,0.0005178,60]
[314264866,1708128668412,-500.0,0.0005178,60]
[314264867,1708128668421,-500.0,0.0005178,60]
[314264868,1708128668431,-788.32,0.0005178,60]
[314264869,1708128668440,-500.0,0.0005178,60]
[314264870,1708128668450,-500.0,0.0005178,60]
[314264871,1708128668459,-891.34,0.0005178,60]
[314264872,1708128668469,-500.0,0.0005178,60]
[314264873,1708128668479,-404.53705251,0.0005178,60]
[314264874,1708128668491,-360.22666298,0.0005178,60]
[314264875,1708128668501,-258.60721682,0.0005178,60]
[314264876,1708128668511,-622.64,0.0005178,60]
[314264877,1708128668521,-584.02,0.0005178,60]
[314264878,1708128668532,-339.63,0.0005178,60]
[314264879,1708128668541,-3200.63,0.0005178,60]
[314264880,1708128668588,-500.0,0.0005178,60]
[314264881,1708128668599,-3120.9,0.0005178,60]
[314264882,1708128668609,-1144.64,0.0005178,60]
[314264883,1708128668618,-500.0,0.0005178,60]
[314264884,1708128668627,-518.28,0.0005178,60]
[314264885,1708128668637,-604.05,0.0005178,60]
[314264886,1708128668646,-500.0,0.0005178,60]
[314264887,1708128668658,-544.3,0.0005178,60]
[314264888,1708128668667,-500.0,0.0005178,60]
[314264889,1708128668679,-500.0,0.0005178,60]
[314264890,1708128668688,-557.8,0.0005178,60]
[314264891,1708128668697,-4774.97,0.0005178,60]
[314264892,1708128668708,-1520.33,0.0005178,60]
[314264893,1708128668718,-847.85,0.0005178,60]
[314264894,1708128668729,-554.99,0.0005178,60]
[314264895,1708128668742,-500.0,0.0005178,60]
[314264896,1708128668754,-1770.09,0.0005178,60]
[314264897,1708128668764,-504.22,0.0005178,60]
[314264898,1708128668775,-510.83,0.0005178,60]
[314264899,1708128668784,-500.0,0.0005178,60]
[314264900,1708128668793,-500.0,0.0005178,60]
[314264901,1708128668802,-929.54,0.0005178,60]
[314264902,1708128668811,-500.0,0.0005178,60]
[314264903,1708128668821,-500.0,0.0005178,60]
[314264904,1708128668831,-500.0,0.0005178,60]
[314264905,1708128668841,-500.0,0.0005178,60]
[314264906,1708128668850,-1915.59,0.0005178,60]
[314264907,1708128668860,-1207.5,0.0005178,14]
[314264908,1708128668869,-1080.07,0.0005178,60]
[314264909,1708128668879,-500.0,0.0005178,60]
[314264910,1708128668888,-500.0,0.0005178,60]
[314264911,1708128668898,-1574.44,0.0005178,60]
[314264912,1708128668908,-500.0,0.0005178,60]
[314264913,1708128668917,-500.0,0.0005178,60]
[314264914,1708128668926,-771.67,0.0005178,60]
[314264915,1708128668936,-420.62,0.0005178,60]
[314264916,1708128668945,-702.82,0.0005178,60]
[314264917,1708128668953,-873.36,0.0005178,60]
[314264918,1708128668962,-500.0,0.0005178,60]
[314264919,1708128668971,-2083.77,0.0005178,60]
[314264920,1708128668980,-12341.22,0.0005178,60]
[314264921,1708128668989,-500.0,0.0005178,60]
[314264922,1708128668998,-1134.85,0.0005178,60]
[314264923,1708128669007,-545.22,0.0005178,60]
[314264924,1708128669017,-500.0,0.0005178,60]
[314264925,1708128669026,-500.0,0.0005178,60]
[314264926,1708128669037,-671.61,0.0005178,60]
[314264927,1708128669047,-500.0,0.0005178,60]
[314264928,1708128669056,-500.0,0.0005178,60]
[314264929,1708128669066,-500.0,0.0005178,60]
[314264930,1708128669075,-171.0,0.00051799,60]
[314264931,1708128669085,-12920.01406299,0.000519,120]
[314264932,1708128669094,-248.16852788,0.00051993,11]
[314264933,1708128669104,-207.21148723,0.00051993,11]
[314264934,1708128669113,-100000.0,0.00052,42]
[314264935,1708128669121,-150.0,0.00052,20]
[314264936,1708128669130,-300.0,0.00052,52]
[314264937,1708128669140,-10596.87179948,0.00052,120]
[314264938,1708128669151,-10000.0,0.00052,90]
[314264939,1708128669163,-2276.1266163,0.00052,120]
[314264940,1708128669172,-200.0,0.00052,30]
[314264941,1708128669182,-360.435829,0.00052054,30]
[314264942,1708128669193,-257.454163,0.00052054,30]
[314264943,1708128669205,-500.0,0.00052054,60]
[314264944,1708128669215,-500.0,0.00052054,2]
[314264945,1708128669224,-308.37,0.00052054,60]
[314264946,1708128669234,-626.9,0.00052054,60]
[314264947,1708128669244,-564.94,0.00052054,60]
[314264948,1708128669253,-612.77,0.00052054,60]
[314264949,1708128669262,-500.0,0.00052054,60]
[314264950,1708128669271,-429.88,0.00052054,60]
[314264951,1708128669280,-500.0,0.00052054,60]
[314264952,1708128669292,-500.0,0.00052054,2]
[314264953,1708128669301,-526.2,0.00052054,60]
[314264954,1708128669311,-500.0,0.00052054,60]
[314264955,1708128669320,-519.54,0.00052054,2]
[314264956,1708128669330,-1158.66,0.00052054,60]
[314264957,1708128669340,-500.0,0.00052054,60]
[314264958,1708128669349,-1028.04,0.00052054,2]
[314264959,1708128669358,-242.116115,0.00052054,120]
[314264960,1708128669367,-3353.490878,0.00052054,30]
[314264961,1708128669378,-211.8516,0.00052054,120]
[314264962,1708128669387,-500.0,0.00052054,60]
[314264963,1708128669396,-500.0,0.00052054,60]
[314264964,1708128669405,-500.0,0.00052054,60]
[314264965,1708128669416,-500.0,0.00052054,60]
[314264966,1708128669426,-5089.08,0.00052054,60]
[314264967,1708128669436,-483.15,0.00052054,60]
[314264968,1708128669445,-706.11,0.00052054,60]
[314264969,1708128669455,-500.0,0.00052054,60]
[314264970,1708128669464,-1139.87,0.00052054,60]
[314264971,1708128669474,-500.0,0.00052054,60]
[314264972,1708128669484,-151.42673394,0.00052054,7]
[314264973,1708128669493,-500.0,0.00052054,60]
[314264974,1708128669502,-500.0,0.00052054,60]
[314264975,1708128669512,-536.33,0.00052054,60]
[314264976,1708128669521,-157.78,0.00052054,60]
[314264977,1708128669530,-500.0,0.00052054,60]
[314264978,1708128669539,-500.0,0.00052054,60]
[314264979,1708128669549,-500.0,0.00052054,60]
[314264980,1708128669558,-1383.87,0.00052054,60]
[314264981,1708128669567,-500.0,0.00052054,60]
[314264982,1708128669577,-500.0,0.00052054,60]
[314264983,1708128669587,-500.0,0.00052054,60]
[314264984,1708128669597,-788.32,0.00052054,60]
[314264985,1708128669606,-500.0,0.00052054,60]
[314264986,1708128669615,-500.0,0.00052054,60]
[314264987,1708128669625,-891.34,0.00052054,60]
[314264988,1708128669635,-504.15,0.00052054,60]
[314264989,1708128669647,-622.64,0.00052054,60]
[314264990,1708128669658,-3200.63,0.00052054,60]
[314264991,1708128669668,-500.0,0.00052054,60]
[314264992,1708128669679,-3120.9,0.00052054,60]
[314264993,1708128669689,-1144.64,0.00052054,60]
[314264994,1708128669701,-500.0,0.00052054,60]
[314264995,1708128669711,-518.28,0.00052054,60]
[314264996,1708128669720,-604.05,0.00052054,60]
[314264997,1708128669729,-500.0,0.00052054,60]
[314264998,1708128669739,-544.3,0.00052054,60]
[314264999,1708128669748,-500.0,0.00052054,60]
[314265000,1708128669757,-500.0,0.00052054,60]
[314265001,1708128669766,-557.8,0.00052054,60]
[314265002,1708128669776,-4774.97,0.00052054,60]
[314265003,1708128669785,-1520.33,0.00052054,60]
[314265004,1708128669795,-847.85,0.00052054,60]
[314265005,1708128669804,-554.99,0.00052054,60]
[314265006,1708128669813,-500.0,0.00052054,60]
[314265007,1708128669824,-1770.09,0.00052054,60]
[314265008,1708128669833,-504.22,0.00052054,60]
[314265009,1708128669842,-510.83,0.00052054,60]
[314265010,1708128669852,-500.0,0.00052054,60]
[314265011,1708128669862,-500.0,0.00052054,60]
[314265012,1708128669871,-929.54,0.00052054,60]
[314265013,1708128669882,-500.0,0.00052054,60]
[314265014,1708128669891,-500.0,0.00052054,60]
[314265015,1708128669902,-500.0,0.00052054,60]
[314265016,1708128669912,-500.0,0.00052054,60]
[314265017,1708128669922,-1915.59,0.00052054,60]
[314265018,1708128669932,-1207.5,0.00052054,14]
[314265019,1708128669942,-1080.07,0.00052054,60]
[314265020,1708128669952,-500.0,0.00052054,60]
[314265021,1708128669962,-500.0,0.00052054,60]
[314265022,1708128669972,-1574.44,0.00052054,60]
[314265023,1708128669981,-500.0,0.00052054,60]
[314265024,1708128669991,-500.0,0.00052054,60]
[314265025,1708128670000,-771.67,0.00052054,60]
[314265026,1708128670010,-702.82,0.00052054,60]
[314265027,1708128670019,-873.36,0.00052054,60]
[314265028,1708128670029,-500.0,0.00052054,60]
[314265029,1708128670039,-2083.77,0.00052054,60]
[314265030,1708128670048,-12341.22,0.00052054,60]
[314265031,1708128670058,-500.0,0.00052054,60]
[314265032,1708128670068,-1134.85,0.00052054,60]
[314265033,1708128670078,-545.22,0.00052054,60]
[314265034,1708128670090,-500.0,0.00052054,60]
[314265035,1708128670099,-500.0,0.00052054,60]
[314265036,1708128670109,-671.61,0.00052054,60]
[314265037,1708128670119,-500.0,0.00052054,60]
[314265038,1708128670129,-500.0,0.00052054,60]
[314265039,1708128670138,-1342.15601815,0.00052107,14]
[314265040,1708128670148,-790.58,0.00052282,2]
[314265041,1708128670159,-500.0,0.00052328,60]
[314265042,1708128670168,-500.0,0.00052328,2]
[314265043,1708128670178,-626.9,0.00052328,60]
[314265044,1708128670188,-564.94,0.00052328,60]
[314265045,1708128670198,-612.77,0.00052328,60]
[314265046,1708128670208,-500.0,0.00052328,60]
[314265047,1708128670218,-500.0,0.00052328,60]
[314265048,1708128670229,-500.0,0.00052328,2]
[314265049,1708128670238,-526.2,0.00052328,60]
[314265050,1708128670248,-500.0,0.00052328,60]
[314265051,1708128670258,-519.54,0.00052328,2]
[314265052,1708128670268,-1158.66,0.00052328,60]
[314265053,1708128670277,-500.0,0.00052328,60]
[314265054,1708128670287,-1028.04,0.00052328,2]
[314265055,1708128670296,-500.0,0.00052328,60]
[314265056,1708128670306,-500.0,0.00052328,60]
[314265057,1708128670316,-500.0,0.00052328,60]
[314265058,1708128670325,-500.0,0.00052328,60]
[314265059,1708128670334,-5089.08,0.00052328,60]
[314265060,1708128670344,-706.11,0.00052328,60]
[314265061,1708128670355,-500.0,0.00052328,60]
[314265062,1708128670364,-1139.87,0.00052328,60]
[314265063,1708128670374,-500.0,0.00052328,60]
[314265064,1708128670384,-500.0,0.00052328,60]
[314265065,1708128670394,-500.0,0.00052328,60]
[314265066,1708128670404,-536.33,0.00052328,60]
[314265067,1708128670415,-500.0,0.00052328,60]
[314265068,1708128670425,-500.0,0.00052328,60]
[314265069,1708128670434,-500.0,0.00052328,60]
[314265070,1708128670445,-1383.87,0.00052328,60]
[314265071,1708128670456,-500.0,0.00052328,60]
[314265072,1708128670466,-500.0,0.00052328,60]
[314265073,1708128670476,-509.7690238,0.00052328,60]
[314265074,1708128670485,-788.32,0.00052328,60]
[314265075,1708128670495,-500.0,0.00052328,60]
[314265076,1708128670505,-500.0,0.00052328,60]
[314265077,1708128670516,-891.34,0.00052328,60]
[314265078,1708128670527,-622.64,0.00052328,60]
[314265079,1708128670537,-3200.63,0.00052328,60]
[314265080,1708128670548,-500.0,0.00052328,60]
[314265081,1708128670558,-3120.9,0.00052328,60]
[314265082,1708128670568,-1144.64,0.00052328,60]
[314265083,1708128670578,-464.64354575,0.00052328,60]
[314265084,1708128670588,-518.28,0.00052328,60]
[314265085,1708128670597,-604.05,0.00052328,60]
[314265086,1708128670607,-500.0,0.00052328,60]
[314265087,1708128670616,-544.3,0.00052328,60]
[314265088,1708128670626,-500.0,0.00052328,60]
[314265089,1708128670635,-500.0,0.00052328,60]
[314265090,1708128670646,-557.8,0.00052328,60]
[314265091,1708128670657,-4774.97,0.00052328,60]
[314265092,1708128670667,-1520.33,0.00052328,60]
[314265093,1708128670678,-847.85,0.00052328,60]
[314265094,1708128670688,-554.99,0.00052328,60]
[314265095,1708128670698,-500.0,0.00052328,60]
[314265096,1708128670709,-1770.09,0.00052328,60]
[314265097,1708128670719,-504.22,0.00052328,60]
[314265098,1708128670729,-510.83,0.00052328,60]
[314265099,1708128670739,-500.0,0.00052328,60]
[314265100,1708128670750,-500.0,0.00052328,60]
[314265101,1708128670760,-929.54,0.00052328,60]
[314265102,1708128670769,-500.0,0.00052328,60]
[314265103,1708128670779,-500.0,0.00052328,60]
[314265104,1708128670789,-481.9,0.00052328,60]
[314265105,1708128670801,-500.0,0.00052328,60]
[314265106,1708128670811,-1915.59,0.00052328,60]
[314265107,1708128670822,-1207.5,0.00052328,14]
[314265108,1708128670833,-1080.07,0.00052328,60]
[314265109,1708128670843,-500.0,0.00052328,60]
[314265110,1708128670853,-500.0,0.00052328,60]
[314265111,1708128670862,-1574.44,0.00052328,60]
[314265112,1708128670872,-500.0,0.00052328,60]
[314265113,1708128670883,-500.0,0.00052328,60]
[314265114,1708128670894,-771.67,0.00052328,60]
[314265115,1708128670903,-702.82,0.00052328,60]
[314265116,1708128670915,-873.36,0.00052328,60]
[314265117,1708128670926,-500.0,0.00052328,60]
[314265118,1708128670935,-2083.77,0.00052328,60]
[314265119,1708128670946,-12341.22,0.00052328,60]
[314265120,1708128670956,-500.0,0.00052328,60]
[314265121,1708128670965,-1134.85,0.00052328,60]
[314265122,1708128670975,-545.22,0.00052328,60]
[314265123,1708128670985,-340.84,0.00052328,60]
[314265124,1708128670995,-500.0,0.00052328,60]
[314265125,1708128671004,-671.61,0.00052328,60]
[314265126,1708128671014,-500.0,0.00052328,60]
[314265127,1708128671025,-500.0,0.00052328,60]
[314265128,1708128671035,-171.0,0.00052347,120]
[314265129,1708128671046,-596.74,0.0005236,2]
[314265130,1708128671056,-89808.99999901,0.000524,120]
[314265131,1708128671065,-156.62,0.00052417,2]
[314265132,1708128671075,-151.021799,0.00052448,47]
[314265133,1708128671084,-198.0,0.000525,30]
[314265134,1708128671094,-168.0,0.000525,30]
[314265135,1708128671103,-158.01887312,0.00052502,30]
[314265136,1708128671113,-3281.5944906,0.0005253,2]
[314265137,1708128671122,-45093.12921297,0.0005256,120]
[314265138,1708128671131,-2128.2794279,0.00052566,2]
[314265139,1708128671141,-243.7219977,0.00052566,2]
[314265140,1708128671150,-50424.5272931,0.00052566,2]
[314265141,1708128671160,-1000.0,0.000526,2]
[314265142,1708128671170,-544.38,0.00052602,60]
[314265143,1708128671179,-473.91,0.00052602,2]
[314265144,1708128671188,-626.9,0.00052602,60]
[314265145,1708128671198,-564.94,0.00052602,60]
[314265146,1708128671207,-612.77,0.00052602,60]
[314265147,1708128671216,-500.0,0.00052602,60]
[314265148,1708128671226,-500.0,0.00052602,60]
[314265149,1708128671235,-500.0,0.00052602,2]
[314265150,1708128671245,-526.2,0.00052602,60]
[314265151,1708128671254,-500.0,0.00052602,60]
[314265152,1708128671264,-519.54,0.00052602,2]
[314265153,1708128671274,-1158.66,0.00052602,60]
[314265154,1708128671283,-343.1,0.00052602,60]
[314265155,1708128671293,-1028.04,0.00052602,2]
[314265156,1708128671303,-561.34821807,0.00052602,60]
[314265157,1708128671312,-500.0,0.00052602,60]
[314265158,1708128671321,-500.0,0.00052602,60]
[314265159,1708128671331,-5089.08,0.00052602,60]
[314265160,1708128671341,-706.11,0.00052602,60]
[314265161,1708128671350,-500.0,0.00052602,60]
[314265162,1708128671359,-1139.87,0.00052602,60]
[314265163,1708128671369,-500.0,0.00052602,60]
[314265164,1708128671378,-500.0,0.00052602,60]
[314265165,1708128671388,-500.0,0.00052602,60]
[314265166,1708128671398,-536.33,0.00052602,60]
[314265167,1708128671409,-500.0,0.00052602,60]
[314265168,1708128671419,-222.71,0.00052602,60]
[314265169,1708128671428,-500.0,0.00052602,60]
[314265170,1708128671438,-1383.87,0.00052602,60]
[314265171,1708128671448,-500.0,0.00052602,60]
[314265172,1708128671457,-500.0,0.00052602,60]
[314265173,1708128671467,-788.32,0.00052602,60]
[314265174,1708128671477,-500.0,0.00052602,60]
[314265175,1708128671487,-500.0,0.00052602,60]
[314265176,1708128671497,-891.34,0.00052602,60]
[314265177,1708128671507,-622.64,0.00052602,60]
[314265178,1708128671517,-3200.63,0.00052602,60]
[314265179,1708128671527,-500.0,0.00052602,60]
[314265180,1708128671536,-3120.9,0.00052602,60]
[314265181,1708128671545,-1144.64,0.00052602,60]
[314265182,1708128671555,-518.28,0.00052602,60]
[314265183,1708128671565,-604.05,0.00052602,60]
[314265184,1708128671575,-500.0,0.00052602,60]
[314265185,1708128671584,-500.0,0.00052602,60]
[314265186,1708128671594,-544.3,0.00052602,60]
[314265187,1708128671604,-500.0,0.00052602,60]
[314265188,1708128671614,-557.8,0.00052602,60]
[314265189,1708128671624,-4774.97,0.00052602,60]
[314265190,1708128671633,-1520.33,0.00052602,60]
[314265191,1708128671643,-847.85,0.00052602,60]
[314265192,1708128671775,-554.99,0.00052602,60]
[314265193,1708128671784,-269.31,0.00052602,60]
[314265194,1708128671794,-1770.09,0.00052602,60]
[314265195,1708128671803,-504.22,0.00052602,60]
[314265196,1708128671813,-510.83,0.00052602,60]
[314265197,1708128671822,-500.0,0.00052602,60]
[314265198,1708128671831,-500.0,0.00052602,60]
[314265199,1708128671840,-929.54,0.00052602,60]
[314265200,1708128671850,-500.0,0.00052602,60]
[314265201,1708128671859,-500.0,0.00052602,60]
[314265202,1708128671868,-589.1919176,0.00052602,60]
[314265203,1708128671879,-1915.59,0.00052602,60]
[314265204,1708128671889,-1207.5,0.00052602,14]
[314265205,1708128671900,-1080.07,0.00052602,60]
[314265206,1708128671912,-500.0,0.00052602,60]
[314265207,1708128671922,-500.0,0.00052602,60]
[314265208,1708128671932,-1574.44,0.00052602,60]
[314265209,1708128671941,-500.0,0.00052602,60]
[314265210,1708128671950,-500.0,0.00052602,60]
[314265211,1708128671960,-771.67,0.00052602,60]
[314265212,1708128671969,-702.82,0.00052602,60]
[314265213,1708128671978,-873.36,0.00052602,60]
[314265214,1708128671987,-500.0,0.00052602,60]
[314265215,1708128671998,-2083.77,0.00052602,60]
[314265216,1708128672007,-12341.22,0.00052602,60]
[314265217,1708128672016,-500.0,0.00052602,60]
[314265218,1708128672025,-1134.85,0.00052602,60]
[314265219,1708128672035,-545.22,0.00052602,60]
[314265220,1708128672045,-500.0,0.00052602,60]
[314265221,1708128672054,-671.61,0.00052602,60]
[314265222,1708128672064,-500.0,0.00052602,60]
[314265223,1708128672073,-500.0,0.00052602,60]
[314265224,1708128672082,-2432.0086193,0.00052619,2]
[314265225,1708128672091,-312.86284954,0.00052689,45]
[314265226,1708128672101,-2511.41845675,0.00052689,45]
[314265227,1708128672110,-283.2382138,0.00052689,45]
[314265228,1708128672120,-1129.62574457,0.00052689,45]
[314265229,1708128672129,-244.38118111,0.00052689,45]
[314265230,1708128672138,-1033.23210639,0.00052689,45]
[314265231,1708128672147,-1032.60223904,0.00052689,45]
[314265232,1708128672156,-1629.02972974,0.00052689,45]
[314265233,1708128672166,-239.10288327,0.00052689,45]
[314265234,1708128672174,-933.38345702,0.00052689,45]
[314265235,1708128672184,-867.36847948,0.00052689,45]
[314265236,1708128672193,-387.16777631,0.00052689,45]
[314265237,1708128672202,-2203.39872075,0.00052689,45]
[314265238,1708128672211,-1000.0,0.00052689,45]
[314265239,1708128672219,-616.2985873,0.00052689,45]
[314265240,1708128672229,-443.53383464,0.00052689,45]
[314265241,1708128672238,-366.74220797,0.00052689,45]
[314265242,1708128672247,-1625.98591458,0.00052689,45]
[314265243,1708128672257,-1544.68661885,0.00052689,45]
[314265244,1708128672266,-1030.58,0.000527,4]
[314265245,1708128672275,-626.9,0.00052876,60]
[314265246,1708128672284,-564.94,0.00052876,60]
[314265247,1708128672293,-612.77,0.00052876,60]
[314265248,1708128672302,-500.0,0.00052876,60]
[314265249,1708128672311,-500.0,0.00052876,60]
[314265250,1708128672321,-500.0,0.00052876,2]
[314265251,1708128672330,-526.2,0.00052876,60]
[314265252,1708128672340,-500.0,0.00052876,60]
[314265253,1708128672349,-519.54,0.00052876,2]
[314265254,1708128672359,-1158.66,0.00052876,60]
[314265255,1708128672369,-1028.04,0.00052876,2]
[314265256,1708128672378,-500.0,0.00052876,60]
[314265257,1708128672387,-500.0,0.00052876,60]
[314265258,1708128672396,-5089.08,0.00052876,60]
[314265259,1708128672406,-706.11,0.00052876,60]
[314265260,1708128672416,-500.0,0.00052876,60]
[314265261,1708128672425,-1139.87,0.00052876,60]
[314265262,1708128672434,-500.0,0.00052876,60]
[314265263,1708128672443,-500.0,0.00052876,60]
[314265264,1708128672453,-500.0,0.00052876,60]
[314265265,1708128672463,-536.33,0.00052876,60]
[314265266,1708128672472,-500.0,0.00052876,60]
[314265267,1708128672481,-500.0,0.00052876,60]
[314265268,1708128672491,-1383.87,0.00052876,60]
[314265269,1708128672500,-627.44,0.00052876,60]
[314265270,1708128672509,-500.0,0.00052876,60]
[314265271,1708128672519,-788.32,0.00052876,60]
[314265272,1708128672528,-500.0,0.00052876,60]
[314265273,1708128672537,-500.0,0.00052876,60]
[314265274,1708128672547,-891.34,0.00052876,60]
[314265275,1708128672556,-622.64,0.00052876,60]
[314265276,1708128672565,-3200.63,0.00052876,60]
[314265277,1708128672575,-500.0,0.00052876,60]
[314265278,1708128672584,-3120.9,0.00052876,60]
[314265279,1708128672593,-1144.64,0.00052876,60]
[314265280,1708128672602,-518.28,0.00052876,60]
[314265281,1708128672611,-604.05,0.00052876,60]
[314265282,1708128672621,-500.0,0.00052876,60]
[314265283,1708128672630,-544.3,0.00052876,60]
[314265284,1708128672639,-500.0,0.00052876,60]
[314265285,1708128672649,-500.0,0.00052876,60]
[314265286,1708128672661,-557.8,0.00052876,60]
[314265287,1708128672670,-4774.97,0.00052876,60]
[314265288,1708128672679,-1520.33,0.00052876,60]
[314265289,1708128672689,-847.85,0.00052876,60]
[314265290,1708128672699,-554.99,0.00052876,60]
[314265291,1708128672709,-1770.09,0.00052876,60]
[314265292,1708128672718,-504.22,0.00052876,60]
[314265293,1708128672727,-510.83,0.00052876,60]
[314265294,1708128672736,-500.0,0.00052876,60]
[314265295,1708128672746,-500.0,0.00052876,60]
[314265296,1708128672755,-929.54,0.00052876,60]
[314265297,1708128672765,-500.0,0.00052876,60]
[314265298,1708128672774,-500.0,0.00052876,60]
[314265299,1708128672784,-1915.59,0.00052876,60]
[314265300,1708128672793,-1207.5,0.00052876,14]
[314265301,1708128672802,-1080.07,0.00052876,60]
[314265302,1708128672811,-500.0,0.00052876,60]
[314265303,1708128672820,-500.0,0.00052876,60]
[314265304,1708128672829,-1574.44,0.00052876,60]
[314265305,1708128672838,-500.0,0.00052876,60]
[314265306,1708128672847,-500.0,0.00052876,60]
[314265307,1708128672856,-771.67,0.00052876,60]
[314265308,1708128672866,-702.82,0.00052876,60]
[314265309,1708128672878,-873.36,0.00052876,60]
[314265310,1708128672889,-500.0,0.00052876,60]
[314265311,1708128672900,-2083.77,0.00052876,60]
[314265312,1708128672910,-12341.22,0.00052876,60]
[314265313,1708128672920,-500.0,0.00052876,60]
[314265314,1708128672930,-1134.85,0.00052876,60]
[314265315,1708128672942,-545.22,0.00052876,60]
[314265316,1708128672951,-500.0,0.00052876,60]
[314265317,1708128672960,-671.61,0.00052876,60]
[314265318,1708128672972,-500.0,0.00052876,60]
[314265319,1708128672981,-500.0,0.00052876,60]
[314265320,1708128672992,-171.0,0.00052895,120]
[314265321,1708128673002,-33795.56281768,0.000529,30]
[314265322,1708128673012,-27459.57413766,0.000529,30]
[314265323,1708128673021,-25000.0,0.000529,120]
[314265324,1708128673032,-369.3248608,0.000529,120]
[314265325,1708128673042,-800.0,0.0005293,120]
[314265326,1708128673051,-4549.2,0.00052957,117]
[314265327,1708128673060,-248.16852788,0.00052993,12]
[314265328,1708128673070,-207.21148723,0.00052993,12]
[314265329,1708128673079,-100000.0,0.00053,43]
[314265330,1708128673090,-5000.0,0.00053,62]
[314265331,1708128673099,-3000.0,0.00053,47]
[314265332,1708128673109,-500.0,0.00053,30]
[314265333,1708128673119,-150.0,0.00053,20]
[314265334,1708128673129,-300.0,0.00053,53]
[314265335,1708128673139,-247.0,0.00053,30]
[314265336,1708128673149,-151.0,0.00053114,2]
[314265337,1708128673160,-626.9,0.0005315,60]
[314265338,1708128673170,-564.94,0.0005315,60]
[314265339,1708128673179,-612.77,0.0005315,60]
[314265340,1708128673189,-480.24,0.0005315,60]
[314265341,1708128673199,-187.6,0.0005315,60]
[314265342,1708128673210,-500.0,0.0005315,2]
[314265343,1708128673220,-526.2,0.0005315,60]
[314265344,1708128673229,-500.0,0.0005315,60]
[314265345,1708128673239,-519.54,0.0005315,2]
[314265346,1708128673248,-1158.66,0.0005315,60]
[314265347,1708128673257,-1028.04,0.0005315,2]
[314265348,1708128673266,-500.0,0.0005315,60]
[314265349,1708128673276,-500.0,0.0005315,60]
[314265350,1708128673286,-5089.08,0.0005315,60]
[314265351,1708128673295,-706.11,0.0005315,60]
[314265352,1708128673304,-500.0,0.0005315,60]
[314265353,1708128673314,-1139.87,0.0005315,60]
[314265354,1708128673324,-500.0,0.0005315,60]
[314265355,1708128673334,-500.0,0.0005315,60]
[314265356,1708128673342,-500.0,0.0005315,60]
[314265357,1708128673353,-536.33,0.0005315,60]
[314265358,1708128673363,-500.0,0.0005315,60]
[314265359,1708128673373,-500.0,0.0005315,60]
[314265360,1708128673383,-1383.87,0.0005315,60]
[314265361,1708128673394,-500.0,0.0005315,60]
[314265362,1708128673404,-788.32,0.0005315,60]
[314265363,1708128673415,-500.0,0.0005315,60]
[314265364,1708128673425,-500.0,0.0005315,60]